bitfinex/quotes_BTCUSD_20250316
["timestamp","ask_amount","ask_price","bid_price","bid_amount"]
[1742130368533,0.0021692,83116.0,83115.0,0.36802585]
[1742130368760,0.0020692,83116.0,83115.0,0.36802585]
[1742130368967,0.0020692,83116.0,83115.0,0.66802585]
[1742130369143,6.92e-05,83116.0,83115.0,0.71432585]
[1742130369547,6.92e-05,83116.0,83115.0,2.21332585]
[1742130369750,6.92e-05,83116.0,83115.0,2.21632585]
[1742130370171,6.92e-05,83116.0,83115.0,2.21332585]
[1742130370376,8e-08,83123.0,83122.0,0.653464]
[1742130370503,8e-08,83123.0,83122.0,0.80908485]
[1742130372028,8e-08,83123.0,83122.0,0.66800485]
[1742130372222,8e-08,83123.0,83122.0,0.81420485]
[1742130372223,0.00100008,83123.0,83122.0,0.81420485]
[1742130373126,0.00116938,83123.0,83122.0,0.82020485]
[1742130373779,0.00116938,83123.0,83122.0,1.23480381]
[1742130378284,3.8e-07,83123.0,83122.0,1.23480381]
[1742130383164,0.0001692,83130.0,83129.0,0.573742]
[1742130383165,5.8e-07,83130.0,83129.0,0.573742]
[1742130383371,5.8e-07,83130.0,83129.0,1.13178181]
[1742130383575,7.8e-07,83140.0,83139.0,0.573712]
[1742130383768,7.8e-07,83140.0,83139.0,2.31047285]
[1742130384395,7.8e-07,83140.0,83139.0,2.30947285]
[1742130384571,7.8e-07,83140.0,83139.0,2.31447285]
[1742130384972,7.8e-07,83140.0,83139.0,2.36447285]
[1742130385379,7.8e-07,83140.0,83139.0,2.41167285]
[1742130385820,7.8e-07,83140.0,83139.0,2.41667285]
[1742130386382,0.0001688,83159.0,83150.0,0.577679]
[1742130386383,9.8e-07,83151.0,83150.0,0.577679]
[1742130386529,1.3e-07,83151.0,83150.0,1.00681881]
[1742130386944,9.3e-07,83159.0,83158.0,0.277655]
[1742130387145,0.00041468,83159.0,83158.0,0.97117481]
[1742130387779,0.00041468,83159.0,83158.0,0.9801098]
[1742130388175,0.00041468,83159.0,83158.0,2.4801098]
[1742130388348,0.00041468,83159.0,83158.0,2.4861098]
[1742130388770,0.00041468,83159.0,83158.0,2.4801098]
[1742130389176,0.00041468,83159.0,83158.0,2.4861098]
[1742130389372,0.00041468,83159.0,83158.0,2.4921098]
[1742130389815,0.01926258,83159.0,83158.0,0.9921098]
[1742130390764,0.01926258,83159.0,83158.0,0.98317481]
[1742130391190,0.01926258,83159.0,83158.0,0.93597481]
[1742130391607,0.01926258,83159.0,83158.0,0.52137585]
[1742130391836,0.00041468,83159.0,83158.0,0.43967585]
[1742130393304,0.00041468,83159.0,83158.0,0.43943585]
[1742130393646,0.00031468,83159.0,83158.0,0.43943585]
[1742130396276,0.00031468,83159.0,83158.0,0.03856585]
[1742130396489,0.00031468,83159.0,83158.0,0.032124]
[1742130396697,0.27169177,83159.0,83158.0,0.032124]
[1742130397018,0.26244019,83159.0,83158.0,0.032124]
[1742130397499,0.26260939,83159.0,83158.0,0.012]
[1742130397721,0.26260939,83159.0,83158.0,0.006]
[1742130397911,0.252571,83145.0,83143.0,0.14016]
[1742130398115,0.252564,83147.0,83143.0,0.14016]
[1742130398328,0.00763712,83144.0,83143.0,0.240548]
[1742130398479,0.012026,83151.0,83141.0,0.012027]
[1742130398480,0.252537,83156.0,83155.0,0.020124]
[1742130399735,0.27138842,83156.0,83155.0,0.020124]
[1742130399940,0.27138842,83156.0,83155.0,0.021124]
[1742130400732,0.27138842,83156.0,83155.0,0.022124]
[1742130402765,0.01885142,83156.0,83155.0,0.022124]
[1742130403357,0.012025,83156.0,83155.0,0.022124]
[1742130404465,0.012025,83156.0,83155.0,0.002]
[1742130404826,0.012025,83156.0,83155.0,0.022124]
[1742130405028,0.01180022,83160.0,83156.0,0.012025]
[1742130405235,0.01180022,83160.0,83156.0,0.240509]
[1742130405437,0.24098688,83159.0,83155.0,0.022124]
[1742130405902,0.24098688,83159.0,83158.0,0.020124]
[1742130406449,0.25983742,83159.0,83158.0,0.020124]
[1742130407686,0.24098688,83159.0,83158.0,0.020124]
[1742130407828,0.00048388,83159.0,83158.0,0.272655]
[1742130408816,0.00048388,83159.0,83158.0,0.020124]
[1742130409063,0.01250888,83159.0,83158.0,0.020124]
[1742130409232,0.02014024,83159.0,83158.0,0.020124]
[1742130409585,0.02014024,83159.0,83158.0,0.022124]
[1742130409981,0.00811524,83159.0,83158.0,0.024124]
[1742130410181,0.00811524,83159.0,83158.0,0.0244624]
[1742130410826,0.02696571,83159.0,83158.0,0.0244624]
[1742130411878,0.02696571,83159.0,83158.0,0.0364874]
[1742130412835,0.01933435,83159.0,83158.0,0.0364874]
[1742130413079,0.02696584,83159.0,83158.0,0.0364874]
[1742130414064,0.02696584,83159.0,83158.0,0.0244624]
[1742130416410,0.03899084,83159.0,83158.0,0.0244624]
[1742130416824,0.02014037,83159.0,83158.0,0.0244624]
[1742130417720,0.02014037,83159.0,83158.0,0.0224624]
[1742130418201,0.02014037,83159.0,83158.0,0.0244624]
[1742130420193,0.03899098,83159.0,83158.0,0.0244624]
[1742130421360,0.00811537,83159.0,83158.0,0.2649684]
[1742130421583,0.00811537,83159.0,83158.0,0.2769934]
[1742130421786,0.00048388,83159.0,83158.0,0.2769934]
[1742130421995,0.00812322,83159.0,83158.0,0.2769934]
[1742130424294,0.01933365,83159.0,83158.0,0.29153425]
[1742130424513,0.01933365,83159.0,83158.0,0.59153425]
[1742130424726,8.8e-07,83159.0,83158.0,0.59153425]
[1742130424930,8.8e-07,83159.0,83158.0,0.72113425]
[1742130425981,8.8e-07,83159.0,83158.0,0.71913425]
[1742130426518,8.8e-07,83159.0,83158.0,0.72513425]
[1742130426867,8.8e-07,83159.0,83158.0,0.72313425]
[1742130427223,8.8e-07,83159.0,83158.0,0.72913425]
[1742130427874,8.8e-07,83159.0,83158.0,0.67913425]
[1742130428055,8.8e-07,83159.0,83158.0,2.17913425]
[1742130428517,8.8e-07,83159.0,83158.0,0.67913425]
[1742130429653,8.8e-07,83159.0,83158.0,1.09373321]
[1742130430377,8.8e-07,83159.0,83158.0,0.93317321]
[1742130430577,8.8e-07,83159.0,83158.0,0.69959236]
[1742130430763,8.8e-07,83159.0,83158.0,0.83907236]
[1742130430962,8.8e-07,83159.0,83158.0,0.83911236]
[1742130431166,8.8e-07,83159.0,83158.0,0.85365321]
[1742130431366,8.8e-07,83159.0,83158.0,0.84765321]
[1742130431609,8.8e-07,83159.0,83158.0,0.71413321]
[1742130431808,8.8e-07,83159.0,83158.0,0.85365321]
[1742130432006,0.01084914,83159.0,83158.0,0.84765321]
[1742130432210,0.312022,83180.0,83174.0,0.240458]
[1742130432411,0.00012405,83177.0,83175.0,0.020124]
[1742130432827,0.01214605,83177.0,83175.0,0.020124]
[1742130433074,0.25259905,83177.0,83175.0,0.020124]
[1742130433428,0.012022,83176.0,83175.0,0.020124]
[1742130434150,0.012022,83176.0,83175.0,0.022124]
[1742130434555,0.00012405,83177.0,83175.0,0.024124]
[1742130435706,0.01897144,83177.0,83175.0,0.024124]
[1742130435920,0.25942444,83177.0,83175.0,0.024124]
[1742130436089,0.012022,83176.0,83175.0,0.024124]
[1742130436299,0.012022,83176.0,83175.0,0.022124]
[1742130436469,0.012022,83176.0,83175.0,0.024124]
[1742130436978,0.01192189,83176.0,83175.0,0.024124]
[1742130437381,0.01192189,83176.0,83175.0,0.022124]
[1742130437713,0.01192189,83176.0,83175.0,0.002]
[1742130437929,0.01897144,83177.0,83175.0,0.022124]
[1742130438254,0.012022,83176.0,83175.0,0.024124]
[1742130438440,0.012022,83176.0,83175.0,0.002]
[1742130438676,0.012022,83176.0,83175.0,0.004]
[1742130438846,0.012022,83176.0,83175.0,0.024124]
[1742130439099,0.012022,83176.0,83175.0,0.022124]
[1742130439251,0.012022,83176.0,83175.0,0.024124]
[1742130439454,0.012022,83176.0,83175.0,0.020124]
[1742130439654,0.012022,83174.0,83173.0,0.020124]
[1742130441310,0.012022,83174.0,83160.0,0.012025]
[1742130441311,0.2525,83168.0,83165.0,0.020124]
[1742130441568,0.012025,83159.0,83158.0,0.0003384]
[1742130441742,0.252528,83159.0,83158.0,0.0204624]
[1742130442540,0.252528,83159.0,83158.0,0.0003384]
[1742130442715,0.252528,83159.0,83158.0,0.0023384]
[1742130443127,0.27137979,83159.0,83158.0,0.0023384]
[1742130443328,0.27137979,83159.0,83158.0,0.0234624]
[1742130443542,0.27137979,83159.0,83158.0,0.0033384]
[1742130443938,0.27137979,83159.0,83158.0,0.0043384]
[1742130444609,0.28354979,83159.0,83158.0,0.0043384]
[1742130445020,0.00012405,83177.0,83176.0,0.04668685]
[1742130445245,0.00012405,83177.0,83176.0,0.020124]
[1742130445425,0.00029325,83177.0,83176.0,0.032146]
[1742130445643,0.00029325,83177.0,83176.0,0.04788906]
[1742130446275,0.00129325,83177.0,83176.0,0.04668685]
[1742130446477,0.00129325,83177.0,83176.0,0.04968685]
[1742130446742,0.00029325,83177.0,83176.0,0.04668685]
[1742130447115,0.00029325,83177.0,83176.0,0.05568685]
[1742130449068,0.00029325,83177.0,83176.0,0.041146]
[1742130449241,0.00019325,83177.0,83176.0,0.029124]
[1742130449415,0.00984737,83177.0,83176.0,0.041146]
[1742130449624,0.00019325,83177.0,83176.0,0.041146]
[1742130450000,0.00019325,83177.0,83176.0,0.036146]
[1742130450196,0.00019325,83177.0,83176.0,0.032146]
[1742130450445,0.00019325,83177.0,83176.0,0.035146]
[1742130450644,0.00019325,83177.0,83176.0,0.037146]
[1742130450884,0.00019325,83177.0,83176.0,0.035146]
[1742130451221,0.00019325,83177.0,83176.0,0.038146]
[1742130451419,0.00019325,83177.0,83176.0,0.035146]
[1742130451997,0.00019325,83177.0,83176.0,0.05088902]
[1742130452786,0.00019325,83177.0,83176.0,0.038146]
[1742130453186,0.00019325,83177.0,83176.0,0.035146]
[1742130453428,0.00019325,83177.0,83176.0,0.032146]
[1742130453635,0.00019325,83177.0,83176.0,0.039146]
[1742130453904,0.00019325,83177.0,83176.0,0.05488902]
[1742130454333,0.00019325,83177.0,83176.0,0.05988902]
[1742130454750,0.00019325,83177.0,83176.0,0.14228902]
[1742130455049,0.00019325,83177.0,83176.0,0.13528902]
[1742130455254,0.00019325,83177.0,83176.0,0.14028902]
[1742130455830,0.00019325,83177.0,83176.0,0.13528902]
[1742130456414,0.00019325,83177.0,83176.0,0.14128902]
[1742130456633,0.00019325,83177.0,83176.0,0.13628902]
[1742130456841,0.00019325,83177.0,83176.0,0.14228902]
[1742130457019,0.00019325,83177.0,83176.0,0.13628902]
[1742130457360,0.00019325,83177.0,83176.0,0.14228902]
[1742130457517,0.00019325,83177.0,83176.0,0.14262742]
[1742130458790,0.00019325,83177.0,83176.0,0.14142525]
[1742130459390,0.00019325,83177.0,83176.0,0.0444844]
[1742130460397,0.00019325,83177.0,83176.0,0.0384844]
[1742130460596,0.00019325,83177.0,83176.0,0.05422742]
[1742130460893,0.00019325,83177.0,83176.0,0.05302525]
[1742130461097,0.00019325,83177.0,83176.0,0.05902525]
[1742130461303,0.00019325,83177.0,83176.0,0.0324624]
[1742130461476,0.00019325,83177.0,83176.0,0.0123384]
[1742130461477,0.01221525,83177.0,83176.0,0.0123384]
[1742130461746,0.02211505,83177.0,83176.0,0.0324624]
[1742130461923,0.0289397,83177.0,83176.0,0.0324624]
[1742130462673,0.0289397,83177.0,83176.0,0.0264624]
[1742130462873,0.0289397,83177.0,83176.0,0.0284624]
[1742130463109,0.0409617,83177.0,83176.0,0.0083384]
[1742130463312,0.0409617,83177.0,83176.0,0.0023384]
[1742130463508,0.0409617,83177.0,83176.0,0.0224624]
[1742130463711,0.0409617,83177.0,83176.0,0.0244624]
[1742130463863,0.0409617,83177.0,83176.0,0.0003384]
[1742130464285,0.4163617,83177.0,83176.0,0.0003384]
[1742130466613,0.8332617,83177.0,83176.0,0.0003384]
[1742130467217,0.4578617,83177.0,83176.0,0.0003384]
[1742130467433,0.01009305,83177.0,83176.0,0.28747825]
[1742130467607,0.01009305,83177.0,83176.0,0.31173356]
[1742130467608,0.00019325,83177.0,83176.0,0.31173356]
[1742130468216,0.00019325,83177.0,83176.0,1.81173356]
[1742130468582,0.00019325,83177.0,83176.0,1.78747825]
[1742130469672,0.20616824,83200.0,83191.0,0.01202]
[1742130469833,0.252403,83200.0,83199.0,0.020124]
[1742130470695,0.27124578,83200.0,83199.0,0.020124]
[1742130470871,0.252406,83199.0,83197.0,0.020124]
[1742130471331,0.00644787,83198.0,83197.0,0.020124]
[1742130471502,0.01846687,83198.0,83197.0,0.020124]
[1742130471808,0.012019,83196.0,83191.0,0.020124]
[1742130472003,0.012019,83196.0,83195.0,0.020124]
[1742130472211,0.252417,83196.0,83195.0,0.020124]
[1742130472823,0.252417,83196.0,83186.0,0.012021]
[1742130472824,0.240422,83187.0,83186.0,0.020124]
[1742130473024,0.252448,83185.0,83183.0,0.020124]
[1742130473270,0.252448,83185.0,83184.0,0.020124]
[1742130473668,0.2712934,83185.0,83184.0,0.020124]
[1742130473870,0.0188454,83185.0,83184.0,0.020124]
[1742130474630,0.0188454,83185.0,83184.0,0.022124]
[1742130474839,0.0188454,83185.0,83184.0,0.025124]
[1742130478070,0.0308664,83185.0,83184.0,0.025124]
[1742130478640,0.012021,83185.0,83184.0,0.025124]
[1742130480335,0.01202,83188.0,83184.0,0.265553]
[1742130480902,0.0001692,83185.0,83184.0,0.265553]
[1742130481210,0.0001692,83185.0,83184.0,0.277574]
[1742130481395,0.0001692,83185.0,83184.0,0.272574]
[1742130481742,0.0001692,83185.0,83184.0,0.274574]
[1742130481946,0.0001692,83185.0,83184.0,0.272574]
[1742130482365,0.0001692,83185.0,83184.0,0.276574]
[1742130483539,0.0001692,83185.0,83184.0,0.272574]
[1742130483986,0.0001692,83185.0,83184.0,0.279574]
[1742130484333,0.0001692,83185.0,83184.0,0.272574]
[1742130484522,0.0001692,83185.0,83184.0,0.276574]
[1742130484724,0.0001692,83185.0,83184.0,0.277574]
[1742130485071,0.0001692,83185.0,83184.0,0.282574]
[1742130485270,0.0001692,83185.0,83184.0,0.277574]
[1742130485537,0.0001692,83185.0,83184.0,0.282574]
[1742130487451,0.0001692,83185.0,83184.0,0.29711485]
[1742130488762,0.0001692,83185.0,83184.0,0.30413122]
[1742130489874,0.0001692,83185.0,83184.0,0.29913122]
[1742130490312,0.0001692,83185.0,83184.0,0.29911485]
[1742130490492,0.0001692,83185.0,83184.0,0.43847485]
[1742130491144,0.0001692,83185.0,83184.0,0.45078587]
[1742130491347,0.0001692,83185.0,83184.0,0.43847485]
[1742130491751,0.2405962,83185.0,83184.0,0.012]
[1742130491995,0.00559079,83185.0,83184.0,0.012]
[1742130492219,0.0001692,83185.0,83184.0,0.012]
[1742130492561,0.0001692,83185.0,83184.0,0.032124]
[1742130492717,0.0001692,83185.0,83184.0,0.0444832]
[1742130493120,0.00559079,83185.0,83184.0,0.0444832]
[1742130493323,0.0001692,83185.0,83184.0,0.0444832]
[1742130493696,0.0001692,83185.0,83184.0,0.0384832]
[1742130494038,0.0001692,83185.0,83184.0,0.0364832]
[1742130496029,0.0001692,83185.0,83184.0,0.05222609]
[1742130496549,0.0001692,83185.0,83184.0,0.05322609]
[1742130497124,0.0001692,83185.0,83184.0,0.04822609]
[1742130497332,0.0001692,83185.0,83184.0,0.05422609]
[1742130497533,0.0001692,83185.0,83184.0,0.06022609]
[1742130498211,0.0001692,83185.0,83184.0,1.64282605]
[1742130498411,0.0001692,83185.0,83184.0,1.64162405]
[1742130499402,0.0001692,83185.0,83184.0,1.62962405]
[1742130499582,0.0001692,83185.0,83184.0,2.39782301]
[1742130500161,0.0001692,83185.0,83184.0,2.40382301]
[1742130500346,0.0001692,83185.0,83184.0,2.39782301]
[1742130500750,0.0001692,83185.0,83184.0,2.40382301]
[1742130500972,0.21330867,83213.0,83184.0,2.39180201]
[1742130501191,0.21330867,83213.0,83212.0,0.020124]
[1742130501192,0.22544972,83213.0,83212.0,0.020124]
[1742130501567,0.23092082,83213.0,83212.0,0.020124]
[1742130501870,0.00559515,83213.0,83212.0,0.260473]
[1742130502071,0.00012405,83213.0,83212.0,0.27249]
[1742130502505,0.00012405,83213.0,83212.0,1.77249]
[1742130502922,0.00012405,83213.0,83212.0,1.77449]
[1742130503181,0.00012405,83213.0,83212.0,1.77249]
[1742130503377,0.00012405,83213.0,83212.0,1.78703085]
[1742130503625,0.00012405,83213.0,83212.0,1.87733085]
[1742130503973,2.397e-05,83213.0,83212.0,1.87733085]
[1742130504179,2.397e-05,83213.0,83212.0,1.87233085]
[1742130504380,2.397e-05,83213.0,83212.0,1.86733085]
[1742130504585,0.00019307,83213.0,83212.0,1.86733085]
[1742130505727,0.00019307,83213.0,83212.0,2.17833085]
[1742130506085,0.00019307,83213.0,83212.0,2.16733085]
[1742130506400,0.00019307,83213.0,83212.0,2.20391124]
[1742130507153,0.00019307,83213.0,83212.0,2.34475124]
[1742130507358,1e-06,83229.0,83228.0,0.701642]
[1742130507546,1e-06,83229.0,83228.0,0.85734285]
[1742130508273,1e-06,83229.0,83228.0,2.35734285]
[1742130508479,1e-06,83229.0,83228.0,2.19605885]
[1742130508687,1e-06,83229.0,83228.0,0.78835885]
[1742130508828,1e-06,83229.0,83228.0,0.50848285]
[1742130509028,1e-06,83229.0,83228.0,0.50844285]
[1742130509635,1e-06,83229.0,83228.0,0.51444285]
[1742130510382,1e-06,83229.0,83228.0,0.52044285]
[1742130510574,1e-06,83229.0,83228.0,0.50844285]
[1742130510954,1e-06,83229.0,83228.0,0.36728285]
[1742130511170,1e-06,83229.0,83228.0,0.50828285]
[1742130511369,1e-06,83229.0,83228.0,0.51428285]
[1742130511616,1e-06,83229.0,83228.0,0.37328285]
[1742130512133,1e-06,83229.0,83228.0,0.51424285]
[1742130512779,1e-06,83235.0,83234.0,0.272424]
[1742130512988,1e-06,83235.0,83234.0,0.58696485]
[1742130513398,2e-07,83246.0,83245.0,0.032136]
[1742130513608,2e-07,83246.0,83245.0,0.58813171]
[1742130513810,0.0004138,83246.0,83245.0,0.59193085]
[1742130514022,0.0004138,83246.0,83245.0,0.58693085]
[1742130514236,0.0004138,83246.0,83245.0,0.59193085]
[1742130514455,0.0004138,83246.0,83245.0,0.58693085]
[1742130514642,0.0004138,83246.0,83245.0,0.59293085]
[1742130514916,0.0004138,83246.0,83245.0,0.59893085]
[1742130515957,8e-07,83246.0,83245.0,1.00752981]
[1742130516154,0.012005,83292.0,83284.0,0.240142]
[1742130516358,0.012006,83291.0,83290.0,0.020124]
[1742130516737,0.012005,83295.0,83290.0,0.020124]
[1742130516937,0.00012407,83296.0,83295.0,0.24011]
[1742130517212,0.00012407,83296.0,83294.0,0.012005]
[1742130517435,0.00012407,83296.0,83295.0,0.272239]
[1742130517594,0.0008,83309.0,83308.0,0.240072]
[1742130517794,0.0008,83309.0,83298.0,0.012005]
[1742130517795,0.012003,83306.0,83305.0,0.020124]
[1742130518004,0.252121,83293.0,83291.0,0.020124]
[1742130518182,0.012005,83296.0,83292.0,0.020124]
[1742130518399,0.012005,83296.0,83291.0,0.02024807]
[1742130518400,0.012005,83292.0,83291.0,0.02024807]
[1742130518922,0.252124,83292.0,83291.0,0.00012407]
[1742130519120,0.252124,83292.0,83291.0,0.02024807]
[1742130519298,0.552124,83292.0,83291.0,0.00012407]
[1742130520101,0.552124,83292.0,83291.0,0.00412407]
[1742130520102,0.540119,83292.0,83291.0,0.00412407]
[1742130520303,0.552124,83292.0,83291.0,0.00412407]
[1742130520530,0.552124,83292.0,83291.0,0.00012407]
[1742130520703,0.552124,83292.0,83291.0,0.00212407]
[1742130523153,0.552124,83292.0,83291.0,0.00012407]
[1742130525689,0.240111,83295.0,83291.0,0.00012407]
[1742130525889,0.252103,83299.0,83293.0,0.020124]
[1742130526086,0.240104,83297.0,83293.0,0.020124]
[1742130526452,0.3,83300.0,83293.0,0.020124]
[1742130526653,0.240099,83299.0,83296.0,0.020124]
[1742130527613,0.012005,83298.0,83296.0,0.020124]
[1742130527806,0.5,83299.0,83296.0,0.020124]
[1742130527988,0.5001691,83299.0,83297.0,0.012005]
[1742130528549,0.5001691,83299.0,83298.0,0.012005]
[1742130528753,0.5000691,83299.0,83298.0,0.012005]
[1742130529044,0.5000691,83299.0,83298.0,0.032129]
[1742130529468,0.5000691,83299.0,83298.0,0.020124]
[1742130530295,0.5000691,83299.0,83298.0,0.021124]
[1742130530542,0.5120731,83299.0,83298.0,0.021124]
[1742130530717,0.5120731,83299.0,83298.0,0.001]
[1742130531191,0.5120731,83299.0,83298.0,0.002]
[1742130531374,0.5120731,83299.0,83298.0,0.022124]
[1742130531785,0.5120731,83299.0,83298.0,0.001]
[1742130531908,0.5120731,83299.0,83298.0,0.021124]
[1742130532580,0.252124,83292.0,83291.0,0.02024807]
[1742130532790,0.252124,83292.0,83291.0,0.00012407]
[1742130533285,0.252124,83292.0,83291.0,0.02024807]
[1742130533875,0.252124,83292.0,83291.0,0.02224807]
[1742130534069,0.240116,83294.0,83291.0,0.00312407]
[1742130534270,0.012005,83294.0,83292.0,0.020124]
[1742130534826,0.252121,83293.0,83292.0,0.020124]
[1742130535244,0.012005,83295.0,83292.0,0.020124]
[1742130535445,0.012005,83294.0,83292.0,0.020124]
[1742130535576,0.01882198,83296.0,83295.0,0.252115]
[1742130535775,0.01882198,83296.0,83294.0,0.020124]
[1742130535983,0.01882198,83296.0,83294.0,0.27224]
[1742130536425,0.01882198,83296.0,83295.0,0.032129]
[1742130536627,0.01882198,83296.0,83295.0,0.020124]
[1742130536939,0.5000691,83299.0,83298.0,0.020124]
[1742130537534,0.5000691,83299.0,83298.0,0.04227514]
[1742130538151,0.5000691,83299.0,83298.0,0.05428014]
[1742130538321,0.5000691,83299.0,83298.0,0.04773014]
[1742130538672,0.5000691,83299.0,83298.0,0.04404014]
[1742130539414,0.5000691,83299.0,83298.0,0.13988099]
[1742130539637,1e-06,83301.0,83300.0,0.025888]
[1742130539841,1e-06,83301.0,83300.0,0.46832881]
[1742130540080,1e-06,83301.0,83300.0,1.96712885]
[1742130541213,1e-06,83309.0,83308.0,0.697659]
[1742130541360,0.000169,83330.0,83329.0,0.392596]
[1742130541568,0.000169,83330.0,83329.0,0.40713685]
[1742130542168,0.000169,83330.0,83329.0,0.392596]
[1742130542377,0.000169,83330.0,83329.0,0.140584]
[1742130542633,0.252178,83330.0,83329.0,0.008884]
[1742130542801,0.25259127,83330.0,83329.0,0.03103514]
[1742130543125,0.25259127,83330.0,83329.0,0.02715114]
[1742130543126,0.55259127,83330.0,83329.0,0.02715114]
[1742130544277,0.5714042,83330.0,83329.0,0.03115114]
[1742130544486,0.5714042,83330.0,83329.0,0.02615114]
[1742130544964,0.5714042,83330.0,83329.0,0.02215114]
[1742130545113,0.5714042,83330.0,83329.0,0.02515114]
[1742130546045,0.5714042,83330.0,83329.0,0.02815114]
[1742130546247,0.59508023,83330.0,83329.0,0.006]
[1742130546485,0.59508023,83330.0,83329.0,1e-06]
[1742130546486,0.64468023,83330.0,83329.0,1e-06]
[1742130546684,0.94200969,83330.0,83329.0,1e-06]
[1742130546885,0.97885361,83330.0,83329.0,1e-06]
[1742130547232,0.552088,83304.0,83303.0,0.04431485]
[1742130548132,0.551988,83304.0,83303.0,0.04431485]
[1742130548957,0.551988,83304.0,83303.0,0.04731485]
[1742130549406,0.3,83304.0,83303.0,0.04731485]
[1742130549609,0.240081,83305.0,83303.0,0.04731485]
[1742130549766,0.012004,83304.0,83303.0,0.04731485]
[1742130550188,0.012004,83304.0,83303.0,0.003]
[1742130550590,0.19111336,83305.0,83303.0,0.003]
[1742130550909,0.3,83312.0,83306.0,0.240078]
[1742130551083,0.012002,83314.0,83308.0,0.020887]
[1742130551286,0.240069,83310.0,83308.0,0.008884]
[1742130551488,0.012003,83309.0,83308.0,0.008884]
[1742130551666,0.252066,83312.0,83308.0,0.008884]
[1742130551868,0.3,83316.0,83309.0,0.24007]
[1742130552074,0.252054,83316.0,83310.0,0.252068]
[1742130552307,0.012002,83315.0,83314.0,0.008884]
[1742130552536,0.24015891,83322.0,83317.0,0.240047]
[1742130552537,0.00012391,83322.0,83317.0,0.240047]
[1742130552754,0.00012391,83322.0,83321.0,0.008884]
[1742130553141,0.01212491,83322.0,83321.0,0.008884]
[1742130553340,0.25215691,83322.0,83321.0,0.008884]
[1742130553541,0.252039,83320.0,83319.0,0.008884]
[1742130554150,0.25215691,83322.0,83321.0,0.008884]
[1742130554526,0.012002,83315.0,83308.0,0.002]
[1742130554730,0.552073,83309.0,83308.0,0.002]
[1742130555158,0.252097,83301.0,83295.0,0.008884]
[1742130555739,0.252097,83301.0,83292.0,0.03525551]
[1742130555951,1.3381405,83301.0,83292.0,0.03525551]
[1742130556141,1.3381405,83301.0,83291.0,0.0003378]
[1742130556355,1.3381405,83301.0,83300.0,0.0033378]
[1742130556749,1.3381405,83301.0,83300.0,0.0003378]
[1742130556951,1.5030605,83301.0,83300.0,0.0003378]
[1742130557150,1.57777802,83301.0,83300.0,0.0023378]
[1742130557369,1.5080605,83301.0,83300.0,8e-07]
[1742130557774,1.5864605,83301.0,83300.0,8e-07]
[1742130557945,1.96660596,83301.0,83300.0,8e-07]
[1742130558149,1.96860596,83301.0,83300.0,8e-07]
[1742130558605,1.79754996,83301.0,83300.0,8e-07]
[1742130558914,0.252124,83292.0,83291.0,0.0003378]
[1742130559801,0.252124,83292.0,83291.0,0.0092218]
[1742130560347,0.254124,83292.0,83291.0,0.0092218]
[1742130560980,0.254124,83292.0,83291.0,0.0003378]
[1742130561535,0.255124,83292.0,83291.0,0.0003378]
[1742130561943,0.556124,83292.0,83291.0,8e-07]
[1742130562473,0.721244,83292.0,83291.0,8e-07]
[1742130563241,0.718244,83292.0,83291.0,8e-07]
[1742130563444,1.15521431,83292.0,83291.0,8e-07]
[1742130563649,0.012011,83252.0,83244.0,0.240256]
[1742130563848,0.252248,83252.0,83251.0,0.008884]
[1742130564652,0.240243,83249.0,83246.0,0.00900807]
[1742130564850,0.25226,83247.0,83246.0,0.00012407]
[1742130565073,0.25226,83247.0,83246.0,0.00900807]
[1742130565282,0.25226,83247.0,83246.0,0.00012407]
[1742130565886,0.25226,83247.0,83246.0,0.00412407]
[1742130566289,0.25226,83247.0,83246.0,0.00012407]
[1742130566630,0.2710908,83247.0,83246.0,0.00312407]
[1742130566992,0.2710908,83247.0,83246.0,0.00712407]
[1742130567373,0.2710908,83247.0,83246.0,0.00312407]
[1742130567575,0.5710908,83247.0,83246.0,0.00312407]
[1742130567775,0.55226,83247.0,83246.0,0.00612407]
[1742130568756,0.55226,83247.0,83246.0,0.00312407]
[1742130568900,0.55226,83247.0,83246.0,0.00012407]
[1742130569967,0.302,83247.0,83246.0,0.00012407]
[1742130570123,0.002,83247.0,83246.0,0.26127107]
[1742130570332,0.002,83247.0,83246.0,0.34347107]
[1742130570927,0.003,83247.0,83246.0,0.39307107]
[1742130571352,0.25222,83261.0,83253.0,0.25224]
[1742130571353,0.252224,83260.0,83253.0,0.25224]
[1742130571775,0.252224,83260.0,83253.0,0.25124]
[1742130571976,0.252224,83260.0,83254.0,0.252236]
[1742130572406,0.012009,83267.0,83260.0,0.01201]
[1742130572617,0.2522,83267.0,83265.0,0.007884]
[1742130572833,0.3,83270.0,83265.0,0.007884]
[1742130573271,0.240191,83267.0,83265.0,0.007884]
[1742130574572,0.2522,83267.0,83265.0,0.007884]
[1742130574781,0.252212,83263.0,83260.0,0.007884]
[1742130574995,0.252258,83248.0,83247.0,0.171044]
[1742130575194,0.252258,83248.0,83242.0,0.240263]
[1742130575399,0.012012,83247.0,83246.0,0.09020807]
[1742130575598,0.252258,83248.0,83246.0,0.09020807]
[1742130575799,0.252258,83248.0,83247.0,0.007884]
[1742130575999,0.24024,83250.0,83249.0,0.007884]
[1742130576356,0.240231,83254.0,83249.0,0.007884]
[1742130576559,0.01883004,83250.0,83249.0,0.007884]
[1742130577667,0.240243,83249.0,83248.0,0.007884]
[1742130577876,0.01883004,83250.0,83248.0,0.007884]
[1742130578283,0.252247,83252.0,83248.0,0.007884]
[1742130578440,0.012011,83252.0,83248.0,0.007884]
[1742130578640,0.012011,83252.0,83249.0,0.007884]
[1742130578867,0.252247,83252.0,83249.0,0.007884]
[1742130579208,0.012011,83252.0,83249.0,0.007884]
[1742130579319,0.012011,83252.0,83249.0,0.009884]
[1742130579519,0.012011,83252.0,83249.0,0.007884]
[1742130579797,0.012178,83267.0,83261.0,0.01201]
[1742130579987,0.012178,83267.0,83258.0,0.007884]
[1742130579988,0.24021,83261.0,83258.0,0.007884]
[1742130580344,0.252223,83260.0,83258.0,0.007884]
[1742130580538,0.252236,83255.0,83254.0,0.007884]
[1742130581867,0.252236,83255.0,83254.0,0.011884]
[1742130582670,0.25222,83261.0,83258.0,0.007884]
[1742130582877,0.01201,83261.0,83258.0,0.007884]
[1742130583089,0.01882853,83262.0,83261.0,0.01201]
[1742130583291,0.01882853,83262.0,83261.0,0.252218]
[1742130583535,0.01882853,83262.0,83261.0,0.260102]